fUST/lending_fUST_20241109
["ID","MTS","AMOUNT","RATE_DAILY","PERIOD"]
[341730089,1731160238869,-151.0,0.00021931,7]
[341730090,1731160238879,-151.0,0.00022028,7]
[341730091,1731160238888,-1995.316886,0.00022029,2]
[341730092,1731160238897,-2975.274622,0.00022103,7]
[341730093,1731160238907,-2975.274622,0.00022103,7]
[341730094,1731160238916,-151.0,0.00022103,7]
[341730095,1731160238926,-151.0,0.00022103,7]
[341730096,1731160238936,-151.0,0.00022103,7]
[341730097,1731160238946,-151.0,0.00022103,7]
[341730098,1731160238955,-151.0,0.00022103,7]
[341730099,1731160238965,-151.0,0.00022103,7]
[341730100,1731160238975,-986.72013749,0.00022114,2]
[341730101,1731160238984,-151.0,0.00022142,7]
[341730102,1731160238994,-183.280352,0.00022142,7]
[341730103,1731160239004,-7812.2163555,0.00022145,2]
[341730104,1731160239014,-500.0,0.00022191,2]
[341730105,1731160239024,-500.0,0.00022191,2]
[341730106,1731160239033,-500.0,0.00022191,2]
[341730107,1731160239042,-500.0,0.00022191,2]
[341730108,1731160239051,-500.0,0.00022191,2]
[341730109,1731160239060,-500.0,0.00022191,2]
[341730110,1731160239070,-500.0,0.00022191,2]
[341730111,1731160239080,-500.0,0.00022205,2]
[341730112,1731160239089,-500.0,0.00022205,2]
[341730113,1731160239098,-270.77379515,0.00022205,2]
[341730114,1731160239107,-447.22634676,0.00022205,2]
[341730115,1731160239117,-500.0,0.00022205,2]
[341730116,1731160239126,-500.0,0.00022205,2]
[341730117,1731160239136,-176.3564931,0.00022205,2]
[341730118,1731160239145,-500.0,0.00022205,2]
[341730119,1731160239154,-620.39359599,0.00022205,2]
[341730120,1731160239163,-500.0,0.00022205,2]
[341730121,1731160239172,-500.0,0.00022205,2]
[341730122,1731160239182,-500.0,0.00022205,2]
[341730123,1731160239191,-500.0,0.00022205,2]
[341730124,1731160239200,-500.0,0.00022205,2]
[341730125,1731160239210,-500.0,0.00022205,2]
[341730126,1731160239219,-362.36532303,0.00022205,2]
[341730127,1731160239228,-500.0,0.00022205,2]
[341730128,1731160239237,-500.0,0.00022205,2]
[341730129,1731160239247,-500.0,0.00022205,2]
[341730130,1731160239256,-500.0,0.00022205,2]
[341730131,1731160239266,-500.0,0.00022205,2]
[341730132,1731160239280,-500.0,0.00022205,2]
[341730133,1731160239292,-500.0,0.00022205,2]
[341730134,1731160239302,-288.74798705,0.00022205,2]
[341730135,1731160239311,-500.0,0.00022205,2]
[341730136,1731160239320,-500.0,0.00022205,2]
[341730137,1731160239330,-500.0,0.00022205,2]
[341730138,1731160239340,-500.0,0.00022205,2]
[341730139,1731160239349,-399.43450369,0.00022205,2]
[341730140,1731160239360,-500.0,0.00022205,2]
[341730141,1731160239372,-500.0,0.00022205,2]
[341730142,1731160239381,-500.0,0.00022205,2]
[341730143,1731160239391,-2975.274622,0.00022206,7]
[341730144,1731160239400,-2975.274622,0.00022206,7]
[341730145,1731160239410,-151.0,0.00022206,7]
[341730146,1731160239419,-151.0,0.00022206,7]
[341730147,1731160239428,-1213.27,0.00022214,2]
[341730148,1731160239438,-500.0,0.00022214,2]
[341730149,1731160239447,-151.0,0.00022214,7]
[341730150,1731160239457,-568.18155947,0.00022214,2]
[341730151,1731160239466,-500.0,0.00022214,2]
[341730152,1731160239476,-500.0,0.00022214,2]
[341730153,1731160239485,-500.0,0.00022214,2]
[341730154,1731160239494,-500.0,0.00022214,2]
[341730155,1731160239504,-151.0,0.00022215,7]
[341730156,1731160239513,-320.98,0.00022303,3]
[341730157,1731160239523,-160.49,0.00022303,3]
[341730158,1731160239532,-1283.92,0.00022304,3]
[341730159,1731160239541,-641.96,0.00022305,3]
[341730160,1731160239551,-151.0,0.00022308,7]
[341730161,1731160239560,-500.0,0.00022314,2]
[341730162,1731160239569,-3251.9678526,0.00022314,2]
[341730163,1731160239579,-151.0,0.00022315,7]
[341730164,1731160239589,-151.0,0.00022315,7]
[341730165,1731160239695,-153.90382,0.00022315,7]
[341730166,1731160239705,-2975.274622,0.00022315,7]
[341730168,1731160239715,-2975.274622,0.00022315,7]
[341730169,1731160239724,-2975.274622,0.00022315,7]
[341730172,1731160239733,-2975.274622,0.00022315,7]
[341730173,1731160239743,-2975.274622,0.00022315,7]
[341730175,1731160239752,-2975.274622,0.00022315,7]
[341730176,1731160239762,-2975.274622,0.00022315,7]
[341730177,1731160239771,-2975.274622,0.00022315,7]
[341730178,1731160239780,-2975.274622,0.00022315,7]
[341730179,1731160239790,-2975.274622,0.00022315,7]
[341730180,1731160239799,-2975.274622,0.00022315,7]
[341730181,1731160239809,-2975.274622,0.00022315,7]
[341730182,1731160239818,-2975.274622,0.00022315,7]
[341730183,1731160239828,-2975.274626,0.00022315,7]
[341730184,1731160239838,-7812.2163555,0.00022402,2]
[341730185,1731160239849,-306.8450153,0.00022423,2]
[341730186,1731160239859,-500.0,0.00022465,2]
[341730187,1731160239868,-500.0,0.00022465,2]
[341730188,1731160239878,-500.0,0.00022465,2]
[341730189,1731160239888,-1213.27,0.00022488,2]
[341730190,1731160239898,-500.0,0.00022488,2]
[341730191,1731160239908,-500.0,0.00022488,2]
[341730192,1731160239917,-7812.21635552,0.00022659,2]
[341730193,1731160239927,-986.72013745,0.00022731,2]
[341730194,1731160239936,-500.0,0.00022739,2]
[341730195,1731160239945,-500.0,0.00022739,2]
[341730196,1731160239955,-500.0,0.00022739,2]
[341730197,1731160239964,-1213.27,0.00022762,2]
[341730198,1731160239973,-500.0,0.00022762,2]
[341730199,1731160239983,-500.0,0.00022762,2]
[341730200,1731160239992,-500.0,0.00022787,2]
[341730201,1731160240001,-500.0,0.00022966,2]
[341730202,1731160240011,-500.0,0.00022973,2]
[341730203,1731160240021,-500.0,0.00022973,2]
[341730204,1731160240030,-500.0,0.00022974,2]
[341730205,1731160240039,-500.0,0.00022975,2]
[341730206,1731160240049,-500.0,0.00022975,2]
[341730207,1731160240057,-170.16600832,0.00022975,2]
[341730208,1731160240067,-500.0,0.00022975,2]
[341730209,1731160240077,-500.0,0.00022975,2]
[341730210,1731160240087,-500.0,0.00022975,2]
[341730211,1731160240097,-500.0,0.00022975,2]
[341730212,1731160240106,-500.0,0.00022975,2]
[341730213,1731160240116,-500.0,0.00022975,2]
[341730214,1731160240125,-500.0,0.00022975,2]
[341730215,1731160240135,-500.0,0.00022975,2]
[341730216,1731160240146,-500.0,0.00022975,2]
[341730217,1731160240156,-500.0,0.00022975,2]
[341730218,1731160240165,-500.0,0.00022975,2]
[341730219,1731160240175,-500.0,0.00022975,2]
[341730220,1731160240185,-544.38,0.00022975,2]
[341730221,1731160240196,-500.0,0.00022975,2]
[341730222,1731160240205,-207.15965831,0.00022975,2]
[341730223,1731160240215,-283.20062218,0.00022975,2]
[341730224,1731160240224,-370.9923496,0.00022975,2]
[341730225,1731160240234,-508.04,0.00022975,2]
[341730226,1731160240244,-500.0,0.00022975,2]
[341730227,1731160240254,-500.0,0.00022975,2]
[341730228,1731160240264,-220.11,0.00022975,2]
[341730229,1731160240274,-193.91,0.00022975,2]
[341730230,1731160240283,-500.0,0.00022975,2]
[341730231,1731160240296,-500.0,0.00022975,2]
[341730232,1731160240305,-500.0,0.00022975,2]
[341730233,1731160240314,-500.0,0.00022975,2]
[341730234,1731160240324,-500.0,0.00022975,2]
[341730235,1731160240334,-500.0,0.00022975,2]
[341730236,1731160240344,-500.0,0.00022975,2]
[341730237,1731160240354,-500.0,0.00022975,2]
[341730238,1731160240364,-500.0,0.00022976,2]
[341730239,1731160240374,-500.0,0.00022976,2]
[341730240,1731160240384,-503.56512641,0.00022976,2]
[341730241,1731160240394,-500.0,0.00022976,2]
[341730242,1731160240404,-500.0,0.00022976,2]
[341730243,1731160240414,-514.27630853,0.00022976,2]
[341730244,1731160240423,-500.0,0.00022976,2]
[341730245,1731160240433,-524.85173349,0.00022976,2]
[341730246,1731160240442,-500.0,0.00022976,2]
[341730247,1731160240451,-500.0,0.00022976,2]
[341730248,1731160240460,-500.0,0.00022976,2]
[341730249,1731160240469,-429.33538333,0.00022976,2]
[341730250,1731160240479,-463.58,0.00022976,2]
[341730251,1731160240489,-500.0,0.00022976,2]
[341730252,1731160240499,-460.50727018,0.00022976,2]
[341730253,1731160240509,-500.0,0.00022976,2]
[341730254,1731160240519,-500.0,0.00022976,2]
[341730255,1731160240529,-500.0,0.00022976,2]
[341730256,1731160240539,-500.0,0.00022976,2]
[341730257,1731160240549,-508.77202144,0.00022976,2]
[341730258,1731160240559,-516.74791874,0.00022976,2]
[341730259,1731160240569,-500.0,0.00022976,2]
[341730260,1731160240578,-500.0,0.00022976,2]
[341730261,1731160240588,-514.51397834,0.00022976,2]
[341730262,1731160240597,-248.33335362,0.00022976,2]
[341730263,1731160240607,-500.0,0.00022976,2]
[341730264,1731160240618,-500.0,0.00022976,2]
[341730265,1731160240627,-500.0,0.00022976,2]
[341730266,1731160240637,-500.0,0.00022976,2]
[341730267,1731160240647,-500.0,0.00022976,2]
[341730268,1731160240657,-500.0,0.00022976,2]
[341730269,1731160240668,-506.76321416,0.00022976,2]
[341730270,1731160240677,-500.0,0.00022976,2]
[341730271,1731160240687,-200.0,0.00022976,2]
[341730272,1731160240697,-211.2285788,0.00022976,2]
[341730273,1731160240707,-501.5604122,0.00022976,2]
[341730274,1731160240717,-202.44712215,0.00022976,2]
[341730275,1731160240726,-477.69071329,0.00022976,2]
[341730276,1731160240736,-352.62011061,0.00022976,2]
[341730277,1731160240745,-500.0,0.00022976,2]
[341730278,1731160240755,-437.61602139,0.00022976,2]
[341730279,1731160240764,-500.0,0.00022976,2]
[341730280,1731160240774,-402.26036887,0.00022976,2]
[341730281,1731160240784,-500.0,0.00022976,2]
[341730282,1731160240793,-500.0,0.00022976,2]
[341730283,1731160240803,-500.0,0.00022976,2]
[341730284,1731160240812,-181.00090255,0.00022976,2]
[341730285,1731160240822,-582.48390284,0.00022976,2]
[341730286,1731160240831,-500.0,0.00022976,2]
[341730287,1731160240841,-503.8875585,0.00022976,2]
[341730288,1731160240850,-503.0589417,0.00022976,2]
[341730289,1731160240860,-500.0,0.00022976,2]
[341730290,1731160240873,-500.0,0.00022976,2]
[341730291,1731160240882,-500.0,0.00022976,2]
[341730292,1731160240892,-517.55575726,0.00022976,2]
[341730293,1731160240902,-508.82141455,0.00022976,2]
[341730294,1731160240911,-516.23497309,0.00022976,2]
[341730295,1731160240921,-546.82,0.00022976,2]
[341730296,1731160240930,-512.19934898,0.00022976,2]
[341730297,1731160240940,-500.0,0.00022976,2]
[341730298,1731160240949,-500.0,0.00022976,2]
[341730299,1731160240959,-500.0,0.00022976,2]
[341730300,1731160240968,-500.0,0.00022976,2]
[341730301,1731160240977,-502.57141722,0.00022976,2]
[341730302,1731160240987,-500.0,0.00022976,2]
[341730303,1731160240996,-500.0,0.00022976,2]
[341730304,1731160241007,-500.0,0.00022976,2]
[341730305,1731160241018,-500.0,0.00022976,2]
[341730306,1731160241027,-500.0,0.00022976,2]
[341730307,1731160241037,-304.30538004,0.00022976,2]
[341730308,1731160241046,-505.14761893,0.00022976,2]
[341730309,1731160241056,-500.0,0.00022976,2]
[341730310,1731160241065,-551.87315166,0.00022976,2]
[341730311,1731160241074,-503.93925783,0.00022976,2]
[341730312,1731160241083,-500.0,0.00022976,2]
[341730313,1731160241093,-471.4079639,0.00022976,2]
[341730314,1731160241102,-500.0,0.00022976,2]
[341730315,1731160241113,-509.7508883,0.00022976,2]
[341730316,1731160241122,-503.57951531,0.00022976,2]
[341730317,1731160241132,-500.0,0.00022976,2]
[341730318,1731160241141,-645.82007788,0.00022976,2]
[341730319,1731160241150,-500.0,0.00022976,2]
[341730320,1731160241159,-500.0,0.00023013,2]
[341730321,1731160241168,-500.0,0.00023013,2]
[341730322,1731160241177,-500.0,0.00023013,2]
[341730323,1731160241187,-1213.27,0.00023036,2]
[341730324,1731160241196,-313.61428046,0.00023036,2]
[341730325,1731160241208,-500.0,0.00023036,2]
[341730326,1731160241217,-500.0,0.00023189,2]
[341730327,1731160241227,-500.0,0.00023189,2]
[341730328,1731160241238,-500.0,0.00023189,2]
[341730329,1731160241247,-500.0,0.00023189,2]
[341730330,1731160241256,-412.49628964,0.00023189,2]
[341730331,1731160241267,-163.332811,0.000232,2]
[341730332,1731160241276,-500.0,0.00023248,2]
[341730333,1731160241286,-500.0,0.00023249,2]
[341730334,1731160241299,-500.0,0.00023249,2]
[341730335,1731160241308,-160.53468892,0.00023249,2]
[341730336,1731160241318,-544.03922163,0.00023249,2]
[341730337,1731160241328,-515.92,0.00023249,2]
[341730338,1731160241338,-500.0,0.00023249,2]
[341730339,1731160241348,-438.78585899,0.00023249,2]
[341730340,1731160241357,-500.0,0.0002325,2]
[341730341,1731160241369,-559.85593017,0.0002325,2]
[341730342,1731160241379,-500.0,0.0002325,2]
[341730343,1731160241389,-527.79531851,0.0002325,2]
[341730344,1731160241399,-500.0,0.0002325,2]
[341730345,1731160241408,-500.0,0.0002325,2]
[341730346,1731160241417,-500.0,0.0002325,2]
[341730347,1731160241427,-500.0,0.0002325,2]
[341730348,1731160241436,-546.82,0.0002325,2]
[341730349,1731160241446,-151.0,0.0002325,2]
[341730350,1731160241457,-500.0,0.0002325,2]
[341730351,1731160241467,-394.97,0.0002325,2]
[341730352,1731160241476,-500.0,0.0002325,2]
[341730353,1731160241487,-500.0,0.0002325,2]
[341730354,1731160241496,-500.0,0.0002325,2]
[341730355,1731160241506,-500.0,0.0002325,2]
[341730356,1731160241515,-508.30224949,0.0002325,2]
[341730357,1731160241526,-500.0,0.0002325,2]
[341730358,1731160241536,-500.0,0.00023287,2]
[341730359,1731160241545,-500.0,0.00023287,2]
[341730360,1731160241555,-500.0,0.00023287,2]
[341730361,1731160241565,-1213.27,0.0002331,2]
[341730362,1731160241574,-500.0,0.0002331,2]
[341730363,1731160241585,-986.72013745,0.00023347,2]
[341730364,1731160241595,-500.0,0.0002335,2]
[341730365,1731160241605,-162.213847,0.00023405,2]
[341730366,1731160241615,-420.0,0.00023453,2]
[341730367,1731160241624,-286.98057913,0.00023523,2]
[341730368,1731160241633,-272.88716216,0.00023523,2]
[341730369,1731160241642,-500.0,0.00023523,2]
[341730370,1731160241652,-500.0,0.00023524,2]
[341730371,1731160241663,-500.0,0.00023524,2]
[341730372,1731160241674,-348.23077697,0.00023524,2]
[341730373,1731160241683,-546.82,0.00023524,2]
[341730374,1731160241693,-500.0,0.00023524,2]
[341730375,1731160241702,-578.06109041,0.00023524,2]
[341730376,1731160241712,-500.0,0.00023524,2]
[341730377,1731160241721,-192.46,0.00023524,2]
[341730378,1731160241730,-500.0,0.00023524,2]
[341730379,1731160241740,-500.0,0.00023561,2]
[341730380,1731160241750,-500.0,0.00023561,2]
[341730381,1731160241759,-500.0,0.00023561,2]
[341730382,1731160241768,-1213.27,0.00023584,2]
[341730383,1731160241778,-500.0,0.00023584,2]
[341730384,1731160241787,-641.96,0.00023673,3]
[341730385,1731160241797,-320.98,0.00023673,3]
[341730386,1731160241807,-2567.84,0.00023674,3]
[341730387,1731160241816,-1283.92,0.00023675,3]
[341730388,1731160241825,-171.399404,0.00023722,2]
[341730389,1731160241835,-420.0,0.0002373,2]
[341730390,1731160241844,-500.0,0.00023787,2]
[341730391,1731160241854,-153.21706322,0.00023788,2]
[341730392,1731160241864,-500.0,0.00023788,2]
[341730393,1731160241873,-484.44,0.00023797,2]
[341730394,1731160241883,-500.0,0.00023798,2]
[341730395,1731160241893,-500.0,0.00023798,2]
[341730396,1731160241902,-546.82,0.00023798,2]
[341730397,1731160241912,-343.40332121,0.00023798,2]
[341730398,1731160241922,-500.0,0.00023798,2]
[341730399,1731160241931,-500.0,0.00023835,2]
[341730400,1731160241940,-500.0,0.00023835,2]
[341730401,1731160241950,-500.0,0.00023835,2]
[341730402,1731160241960,-1213.27,0.00023858,2]
[341730403,1731160241970,-500.0,0.00023858,2]
[341730404,1731160241980,-307.17705922,0.00023879,2]
[341730405,1731160241989,-381.54837724,0.00023886,2]
[341730406,1731160241999,-500.0,0.00023936,2]
[341730407,1731160242009,-501.19151732,0.00023936,2]
[341730408,1731160242103,-502.17679707,0.00023936,2]
[341730409,1731160242115,-501.726989,0.00023936,2]
[341730410,1731160242124,-986.72013745,0.00023964,2]
[341730411,1731160242134,-554.49841929,0.0002397,2]
[341730412,1731160242143,-543.18528652,0.00023994,2]
[341730413,1731160242153,-500.0,0.00023995,2]
[341730414,1731160242162,-501.91111301,0.00023995,2]
[341730415,1731160242172,-533.82413837,0.00023995,2]
[341730416,1731160242182,-575.94704247,0.00023995,2]
[341730417,1731160242192,-501.88367263,0.00023995,2]
[341730418,1731160242201,-372.96892118,0.00023995,2]
[341730419,1731160242211,-500.0,0.00023995,2]
[341730420,1731160242222,-501.92243894,0.00023995,2]
[341730421,1731160242232,-525.46017589,0.00023995,2]
[341730422,1731160242242,-500.88538668,0.00023995,2]
[341730423,1731160242251,-504.33118988,0.00023995,2]
[341730424,1731160242261,-501.50459473,0.00023995,2]
[341730425,1731160242270,-500.56074908,0.00023995,2]
[341730426,1731160242280,-521.97492874,0.00023995,2]
[341730427,1731160242292,-512.42291146,0.00023995,2]
[341730428,1731160242302,-500.0,0.00023995,2]
[341730429,1731160242311,-500.0,0.00023995,2]
[341730430,1731160242321,-531.46918885,0.00023995,2]
[341730431,1731160242330,-500.0,0.00023995,2]
[341730432,1731160242339,-534.36885004,0.00023995,2]
[341730433,1731160242352,-500.0,0.00023995,2]
[341730434,1731160242362,-603.3899854,0.00023995,2]
[341730435,1731160242372,-164.3445402,0.00023995,2]
[341730436,1731160242381,-508.94669036,0.00023995,2]
[341730437,1731160242391,-500.0,0.00023995,2]
[341730438,1731160242401,-500.0,0.00023995,2]
[341730439,1731160242411,-500.0,0.00023995,2]
[341730440,1731160242420,-500.0,0.00023995,2]
[341730441,1731160242430,-500.0,0.00023995,2]
[341730442,1731160242439,-500.0,0.00023995,2]
[341730443,1731160242448,-500.0,0.00023995,2]
[341730444,1731160242457,-607.46678293,0.00023995,2]
[341730445,1731160242467,-252.5904241,0.00023995,2]
[341730446,1731160242476,-500.0,0.00023995,2]
[341730447,1731160242488,-500.0,0.00023995,2]
[341730448,1731160242497,-531.37909473,0.00023995,2]
[341730449,1731160242507,-500.0,0.00023995,2]
[341730450,1731160242516,-500.0,0.00023995,2]
[341730451,1731160242525,-500.0,0.00023995,2]
[341730452,1731160242535,-546.82,0.00024072,2]
[341730454,1731160242544,-500.0,0.00024072,2]
[341730455,1731160242553,-500.0,0.00024109,2]
[341730456,1731160242562,-500.0,0.00024109,2]
[341730457,1731160242572,-500.0,0.00024109,2]
[341730458,1731160242581,-1213.27,0.00024132,2]
[341730459,1731160242590,-500.0,0.00024132,2]
[341730460,1731160242599,-501.58757535,0.00024179,2]
[341730461,1731160242608,-500.0,0.00024269,2]
[341730462,1731160242619,-500.0,0.00024269,2]
[341730463,1731160242627,-633.08250942,0.00024269,2]
[341730464,1731160242637,-500.0,0.00024269,2]
[341730465,1731160242646,-500.0,0.00024269,2]
[341730466,1731160242657,-500.0,0.00024342,2]
[341730467,1731160242667,-500.0,0.00024342,2]
[341730468,1731160242676,-546.82,0.00024346,2]
[341730469,1731160242685,-500.0,0.00024346,2]
[341730470,1731160242695,-500.0,0.00024383,2]
[341730471,1731160242704,-500.0,0.00024383,2]
[341730472,1731160242714,-614.07700889,0.00024383,2]
[341730473,1731160242723,-1213.27,0.00024406,2]
[341730474,1731160242733,-500.0,0.00024406,2]
[341730475,1731160242742,-163.332811,0.00024482,2]
[341730476,1731160242752,-500.0,0.00024543,2]
[341730477,1731160242762,-500.0,0.00024543,2]
[341730478,1731160242771,-500.0,0.00024543,2]
[341730479,1731160242780,-986.72013745,0.0002458,2]
[341730481,1731160242790,-546.82,0.0002462,2]
[341730482,1731160242799,-500.0,0.0002462,2]
[341730483,1731160242811,-500.0,0.00024657,2]
[341730484,1731160242820,-446.79326101,0.00024657,2]
[341730485,1731160242830,-450.0,0.00024658,2]
[341730486,1731160242839,-500.0,0.00024658,2]
[341730488,1731160242849,-500.0,0.00024658,2]
[341730490,1731160242857,-500.0,0.00024658,2]
[341730492,1731160242868,-500.0,0.00024658,2]
[341730494,1731160242878,-552.29459695,0.00024658,2]
[341730496,1731160242887,-500.0,0.00024658,2]
[341730498,1731160242897,-276.3028056,0.00024658,2]
[341730501,1731160242907,-500.0,0.00024658,2]
[341730503,1731160242916,-1213.27,0.0002468,2]
[341730505,1731160242925,-165.1,0.0002468,2]
[341730507,1731160242935,-500.0,0.00024817,2]
[341730509,1731160242944,-500.0,0.00024817,2]
[341730511,1731160242954,-546.82,0.00024894,2]
[341730513,1731160242963,-500.0,0.00024894,2]
[341730515,1731160242972,-500.0,0.00024931,2]
[341730517,1731160242981,-1213.27,0.00024954,2]
[341730518,1731160242991,-507.57757978,0.00024995,2]
[341730520,1731160243000,-500.0,0.00024995,2]
[341730523,1731160243011,-520.40508619,0.00024995,2]
[341730525,1731160243022,-510.02401457,0.00024995,2]
[341730527,1731160243031,-518.62640885,0.00024995,2]
[341730529,1731160243040,-511.57844434,0.00024995,2]
[341730531,1731160243050,-500.0,0.00024995,2]
[341730533,1731160243059,-502.25495837,0.00024995,2]
[341730535,1731160243067,-502.90468829,0.00024995,2]
[341730537,1731160243077,-502.8854946,0.00024995,2]
[341730540,1731160243086,-502.29604936,0.00024995,2]
[341730543,1731160243094,-500.0,0.00024995,2]
[341730545,1731160243103,-500.0,0.00024995,2]
[341730548,1731160243112,-500.0,0.00024995,2]
[341730550,1731160243121,-586.78625986,0.00024995,2]
[341730553,1731160243130,-508.98272828,0.00024995,2]
[341730556,1731160243139,-511.16021568,0.00024995,2]
[341730558,1731160243148,-509.60414563,0.00024995,2]
[341730560,1731160243158,-500.0,0.00024995,2]
[341730562,1731160243167,-501.09205662,0.00024995,2]
[341730564,1731160243176,-503.82383748,0.00024995,2]
[341730566,1731160243185,-172.6912217,0.00024996,2]
[341730568,1731160243195,-307.85362273,0.00024996,2]
[341730570,1731160243204,-4975.53747565,0.00025,2]
[341730572,1731160243213,-500.0,0.00025091,2]
[341730574,1731160243223,-500.0,0.00025091,2]
[341730576,1731160243232,-546.82,0.00025168,2]
[341730579,1731160243241,-500.0,0.00025168,2]
[341730581,1731160243251,-500.0,0.00025205,2]
[341730582,1731160243260,-1213.27,0.00025228,2]
[341730584,1731160243269,-508.58510857,0.00025269,2]
[341730586,1731160243278,-220.2157365,0.00025365,2]
[341730588,1731160243290,-500.0,0.00025365,2]
[341730591,1731160243300,-546.82,0.00025442,2]
[341730592,1731160243309,-500.0,0.00025442,2]
[341730594,1731160243319,-500.0,0.00025479,2]
[341730596,1731160243328,-587.0,0.00025497,2]
[341730598,1731160243338,-1213.27,0.00025502,2]
[341730600,1731160243347,-500.0,0.00025639,2]
[341730602,1731160243357,-546.82,0.00025716,2]
[341730605,1731160243368,-500.0,0.00025716,2]
[341730607,1731160243378,-500.0,0.00025753,2]
[341730609,1731160243387,-1213.27,0.00025776,2]
[341730610,1731160243396,-2859.51962582,0.00025819,2]
[341730612,1731160243405,-500.0,0.00025913,2]
[341730615,1731160243415,-226.761,0.00025981,12]
[341730616,1731160243425,-546.82,0.0002599,2]
[341730619,1731160243434,-500.0,0.0002599,2]
[341730621,1731160243443,-500.0,0.00026027,2]
[341730622,1731160243454,-1213.27,0.0002605,2]
[341730624,1731160243463,-587.0,0.00026103,2]
[341730627,1731160243472,-500.0,0.00026109,2]
[341730628,1731160243482,-404.74750864,0.00026187,2]
[341730631,1731160243491,-546.82,0.00026264,2]
[341730633,1731160243502,-500.0,0.00026264,2]
[341730634,1731160243511,-500.0,0.00026301,2]
[341730636,1731160243520,-1213.27,0.00026324,2]
[341730638,1731160243529,-1130.0,0.00026437,2]
[341730640,1731160243539,-2393.0,0.00026437,2]
[341730642,1731160243549,-546.82,0.00026538,2]
[341730644,1731160243558,-500.0,0.00026538,2]
[341730646,1731160243567,-500.0,0.00026575,2]
[341730648,1731160243577,-1213.27,0.00026598,2]
[341730650,1731160243586,-546.82,0.00026812,2]
[341730652,1731160243596,-500.0,0.00026812,2]
[341730654,1731160243605,-500.0,0.00026849,2]
[341730656,1731160243615,-600.0,0.00026849,2]
[341730658,1731160243625,-1213.27,0.00026872,2]
[341730659,1731160243634,-546.82,0.00027086,2]
[341730660,1731160243644,-500.0,0.00027086,2]
[341730661,1731160243653,-614.0,0.000271,2]
[341730662,1731160243664,-500.0,0.00027123,2]
[341730663,1731160243673,-1213.27,0.00027146,2]
[341730664,1731160243682,-150.0,0.00027309,2]
[341730665,1731160243692,-546.82,0.0002736,2]
[341730666,1731160243701,-500.0,0.0002736,2]
[341730667,1731160243711,-298.3,0.00027397,2]
[341730668,1731160243721,-500.0,0.00027397,2]
[341730669,1731160243730,-500.0,0.00027397,2]
[341730670,1731160243741,-551.6262316,0.00027397,2]
[341730671,1731160243750,-500.0,0.00027397,2]
[341730672,1731160243761,-500.0,0.00027397,2]
[341730673,1731160243770,-500.0,0.00027397,2]
[341730674,1731160243780,-500.0,0.00027397,2]
[341730675,1731160243789,-3395.353948,0.00027397,2]
[341730676,1731160243799,-500.0,0.00027414,5]
[341730678,1731160243808,-1213.27,0.0002742,2]
[341730680,1731160243817,-546.82,0.00027634,2]
[341730682,1731160243827,-500.0,0.00027634,2]
[341730683,1731160243838,-1213.27,0.00027694,2]
[341730685,1731160243847,-823.0,0.00027719,2]
[341730687,1731160243857,-546.82,0.00027908,2]
[341730689,1731160243867,-500.0,0.00027908,2]